bitfinex/quotes_ETHUSD_20241231
["timestamp","ask_amount","ask_price","bid_price","bid_amount"]
[1735631464936,5.00639052,3361.2,3361.1,3.2489235]
[1735631465074,0.7579,3361.2,3361.1,3.2489235]
[1735631465252,0.7579,3361.2,3361.1,3.29814463]
[1735631466398,5.00639052,3361.4,3361.2,0.55]
[1735631466985,5.00639052,3361.4,3361.3,0.04922113]
[1735631467374,5.00639052,3361.4,3361.2,0.55]
[1735631467585,3.7579,3361.4,3361.2,0.55]
[1735631467788,3.7579,3361.4,3361.3,0.04922113]
[1735631468103,3.7579,3361.4,3361.2,0.55]
[1735631468503,3.7579,3361.4,3361.3,0.04922113]
[1735631469012,3.7579,3361.4,3361.2,0.55]
[1735631469305,3.7579,3361.4,3361.3,0.04922113]
[1735631469693,3.7579,3361.4,3361.2,0.55]
[1735631469906,3.7579,3361.4,3361.3,0.04922113]
[1735631470208,3.0,3361.4,3361.3,0.04922113]
[1735631470368,3.0,3361.4,3361.2,0.55]
[1735631470573,1.24849052,3361.6,3361.3,0.92411348]
[1735631470799,1.24849052,3361.6,3361.5,3.2489235]
[1735631471111,1.24849052,3361.6,3361.5,3.2981679]
[1735631472326,3.0,3361.8,3361.6,0.55]
[1735631473713,4.24849052,3361.9,3361.6,9.80738159]
[1735631474020,1.24849052,3361.9,3361.8,3.2489235]
[1735631474616,1.24849052,3362.1,3361.9,0.55]
[1735631474934,4.24849052,3362.1,3361.9,0.55]
[1735631475131,8.03033052,3362.1,3362.0,0.04951581]
[1735631475479,8.03033052,3362.1,3361.9,0.55]
[1735631475682,8.03033052,3362.1,3362.0,0.59904278]
[1735631476204,9.30806375,3362.1,3362.0,0.04904278]
[1735631476704,3.0,3361.9,3361.8,2.6989235]
[1735631478214,7.22353158,3361.9,3361.8,2.6989235]
[1735631478579,7.22353158,3361.9,3361.0,8.9]
[1735631478580,3.0,3361.8,3361.6,0.55]
[1735631478891,3.0,3361.8,3361.7,0.59919785]
[1735631479102,4.87397175,3361.9,3361.7,0.59919785]
[1735631479301,3.81184995,3361.8,3361.7,0.04919785]
[1735631479503,4.15158614,3361.8,3361.7,0.04919785]
[1735631479675,2.97493,3361.5,3361.3,0.55]
[1735631479882,0.83725995,3361.4,3361.3,0.55]
[1735631480485,0.8075,3361.4,3361.3,0.55]
[1735631480684,3.0,3361.6,3361.3,0.55]
[1735631481520,3.0,3361.6,3361.5,3.2489235]
[1735631481920,4.24888891,3361.6,3361.5,3.2489235]
[1735631482826,7.25341886,3361.6,3361.5,3.2489235]
[1735631482996,7.22365891,3361.6,3361.5,3.2489235]
[1735631483323,7.22365891,3361.6,3361.5,3.29808257]
[1735631484302,7.22365891,3361.6,3361.5,0.59915907]
[1735631484498,5.97477,3361.6,3361.5,0.59915907]
[1735631486935,1.87333337,3361.7,3361.5,3.29808257]
[1735631487305,4.87333337,3361.7,3361.5,3.29808257]
[1735631487790,4.24887844,3361.7,3361.5,3.29808257]
[1735631488228,1.24887844,3361.7,3361.6,0.55]
[1735631488398,1.24887844,3361.7,3361.6,0.89805528]
[1735631488591,1.24887844,3361.7,3361.6,0.94740824]
[1735631490136,3.0,3361.9,3361.6,0.94740824]
[1735631490332,3.0,3361.9,3361.8,3.2489235]
[1735631490627,1.24887844,3362.0,3361.9,0.55]
[1735631490826,1.24887844,3362.0,3361.9,1.80463317]
[1735631491329,1.24887844,3362.1,3361.9,1.85353635]
[1735631492636,4.24887844,3362.2,3361.9,1.85353635]
[1735631492933,4.24887844,3362.2,3362.1,3.2489235]
[1735631493456,4.24887844,3362.2,3362.1,3.29781893]
[1735631494999,7.22311844,3362.2,3362.1,3.29781893]
[1735631495328,8.38311701,3362.2,3362.1,3.2489235]
[1735631495491,8.75261315,3362.2,3362.1,3.2489235]
[1735631495935,8.75261315,3362.2,3362.1,3.29718316]
[1735631496496,9.56441315,3362.2,3362.1,0.04825966]
[1735631497019,9.56441315,3362.2,3361.9,0.55]
[1735631497225,7.15553614,3362.2,3362.1,0.0483837]
[1735631497441,7.15553614,3362.2,3361.9,0.55]
[1735631497593,7.15553614,3362.2,3362.1,0.0483837]
[1735631497935,4.18129614,3362.2,3362.1,0.0483837]
[1735631498161,2.97439,3362.1,3361.9,0.55]
[1735631498433,3.00414995,3362.1,3361.9,0.55]
[1735631499027,2.97439,3362.1,3361.9,0.55]
[1735631499353,4.22316571,3362.1,3361.9,0.55]
[1735631499649,3.0,3362.0,3361.8,2.6989235]
[1735631499957,5.27655523,3362.1,3361.8,2.6989235]
[1735631500152,4.24877571,3362.1,3361.9,0.55]
[1735631501318,7.22311571,3362.1,3361.9,0.55]
[1735631501862,5.97434,3362.1,3361.9,0.55]
[1735631502153,2.97441,3362.0,3361.9,0.55]
[1735631504962,2.97441,3362.0,3361.9,0.59844573]
[1735631507276,3.96524191,3362.0,3361.9,0.59844573]
[1735631509083,2.97441,3362.0,3361.9,0.59844573]
[1735631510454,5.97441,3362.0,3361.9,0.59844573]
[1735631510779,5.97441,3362.0,3361.7,0.55]
[1735631511190,5.97441,3362.0,3361.9,0.55]
[1735631511625,5.97441,3362.0,3361.7,0.55]
[1735631511995,5.97441,3362.0,3361.9,0.55]
[1735631512410,5.97441,3362.0,3361.7,0.55]
[1735631512722,7.22318571,3362.0,3361.9,0.55]
[1735631513074,7.22318571,3362.0,3361.8,0.04696368]
[1735631513075,7.22318571,3362.0,3361.7,0.55]
[1735631513313,7.22318571,3362.0,3361.9,0.55]
[1735631513684,7.22318571,3362.0,3361.7,0.55]
[1735631513870,7.22318571,3362.0,3361.9,0.55]
[1735631514409,7.22318571,3362.0,3361.7,0.55]
[1735631514908,7.22318571,3362.0,3361.9,0.55]
[1735631515422,7.22318571,3362.0,3361.7,0.55]
[1735631515772,7.22318571,3362.0,3361.9,0.55]
[1735631516314,7.22318571,3362.0,3361.7,0.55]
[1735631516677,5.97441,3362.0,3361.9,0.55]
[1735631516886,7.09071772,3362.0,3361.9,0.55]
[1735631517217,3.0,3361.5,3361.3,2.6989235]
[1735631517788,5.97477,3361.6,3361.5,0.55]
[1735631518300,0.7512,3361.7,3360.8,1.87325088]
[1735631518597,2.97498,3361.4,3361.1,2.6989235]
[1735631518794,0.82535995,3361.3,3361.2,0.55]
[1735631518980,0.7956,3361.3,3361.2,0.55]
[1735631519187,0.7956,3361.3,3361.0,3.94775742]
[1735631519188,2.97512,3361.2,3361.0,3.94775742]
[1735631519382,5.97512,3361.2,3361.1,0.55]
[1735631520502,7.2242018,3361.2,3361.1,0.55]
[1735631521298,4.2490818,3361.2,3361.1,0.55]
[1735631522608,3.0,3361.2,3361.1,0.55]
[1735631524804,3.0,3361.2,3361.1,0.87489235]
[1735631525595,3.0,3361.2,3361.1,9.77489235]
[1735631528136,3.0,3361.2,3361.1,9.82031308]
[1735631530540,3.0,3361.2,3361.1,9.49542073]
[1735631531618,5.97512,3361.2,3361.1,0.59542073]
[1735631532577,3.0,3361.2,3361.1,0.59542073]
[1735631541697,6.80212,3361.2,3361.1,0.59542073]
[1735631543326,8.0512018,3361.2,3361.1,0.59542073]
[1735631544183,5.0760818,3361.2,3361.1,0.59542073]
[1735631544391,4.2490818,3361.2,3361.1,0.59542073]
[1735631544574,3.0,3361.2,3361.1,0.59542073]
[1735631545709,6.80212,3361.2,3361.1,0.59542073]
[1735631546695,8.0512018,3361.2,3361.1,0.59542073]
[1735631547815,9.6635164,3361.2,3361.1,0.04542073]
[1735631548009,2.97539,3361.0,3360.5,2.6989235]
[1735631548312,2.97549,3360.8,3360.6,0.55]
[1735631548508,0.02975995,3360.7,3360.5,2.6989235]
[1735631549079,0.7686,3360.9,3360.6,0.55]
[1735631549267,3.7686,3360.9,3360.8,2.6989235]
[1735631549468,3.7686,3360.9,3360.8,3.2489235]
[1735631549669,5.0176818,3360.9,3360.8,3.2489235]
[1735631550220,4.2490818,3360.9,3360.8,3.2489235]
[1735631550885,4.2490818,3361.1,3360.9,0.55]
[1735631551818,3.0,3361.1,3360.9,0.55]
[1735631552196,1.2490818,3361.2,3360.9,0.87489235]
[1735631552381,1.2490818,3361.2,3361.1,3.2489235]
[1735631552587,4.2490818,3361.2,3361.1,3.2489235]
[1735631552911,4.2490818,3361.3,3361.2,0.55]
[1735631553285,1.2490818,3361.3,3361.2,0.55]
[1735631553480,1.2490818,3361.3,3361.2,0.90738159]
[1735631554195,1.2490818,3361.5,3361.2,0.90738159]
[1735631554384,1.2490818,3361.5,3361.4,3.2489235]
[1735631555645,0.7686,3362.1,3361.5,0.55]
[1735631555840,0.7686,3362.1,3362.0,2.6989235]
[1735631557340,3.7686,3362.1,3362.0,2.6989235]
[1735631558043,3.7686,3362.1,3362.0,2.74417216]
[1735631559722,4.60455134,3362.1,3362.0,0.04524866]
[1735631563219,4.64221129,3362.1,3362.0,0.04524866]
[1735631563458,4.61245134,3362.1,3362.0,0.04524866]
[1735631563667,2.97468,3361.7,3361.6,2.6989235]
[1735631564241,2.9746,3361.8,3361.6,2.6989235]
[1735631564988,2.9746,3361.8,3361.7,0.55]
[1735631565115,5.9746,3361.8,3361.7,0.55]
[1735631565817,3.0,3361.8,3361.7,0.55]
[1735631566268,5.97459,3361.8,3361.7,0.55]
[1735631567654,2.9748,3361.6,3361.0,11.5989235]
[1735631567855,3.0,3361.2,3361.0,2.6989235]
[1735631568053,3.00489995,3361.2,3361.1,0.55]
[1735631568365,2.97514,3361.2,3361.1,0.55]
[1735631568595,2.97514,3361.2,3361.0,2.6989235]
[1735631568734,6.75171,3361.1,3361.0,2.6989235]
[1735631570259,7.61421434,3361.1,3361.0,2.6989235]
[1735631572406,6.75171,3361.1,3361.0,2.6989235]
[1735631572962,6.75171,3361.1,3361.0,2.74199373]
[1735631574001,6.75171,3361.1,3361.0,2.6989235]
[1735631575400,3.0,3361.0,3360.2,8.9]
[1735631575703,2.97552,3360.8,3360.6,2.6989235]
[1735631575861,2.97552,3360.8,3360.7,0.55]
[1735631576397,3.0,3360.7,3360.3,2.6989235]
[1735631576601,5.97575,3360.5,3360.4,0.55]
[1735631576758,3.0,3360.5,3360.4,0.55]
[1735631584110,2.97557,3360.7,3360.4,0.55]
[1735631584399,2.97557,3360.7,3360.6,3.2489235]
[1735631585917,3.0,3360.8,3360.7,0.55]
[1735631586118,2.97548,3360.8,3360.7,0.55]
[1735631588042,2.97548,3360.8,3360.7,0.59368929]
[1735631590641,2.97548,3360.8,3360.7,0.04368929]
[1735631590642,3.68224511,3360.8,3360.7,0.04368929]
[1735631592037,3.68224511,3360.8,3360.6,2.6989235]
[1735631592346,2.97557,3360.7,3360.6,2.6989235]
[1735631595922,3.75367,3360.7,3360.6,2.6989235]
[1735631597537,3.7781,3360.5,3360.3,2.6989235]
[1735631597863,2.97602,3360.2,3360.0,2.6989235]
[1735631598059,2.97602,3360.2,3360.1,0.55]
[1735631600868,3.75412,3360.2,3360.1,0.55]
[1735631603094,3.75412,3360.2,3360.1,0.04303127]
[1735631603604,0.7781,3359.8,3359.7,2.6989235]
[1735631603774,0.80785995,3359.8,3359.7,3.2489235]
[1735631603973,3.75446,3359.8,3359.7,3.2489235]
[1735631605203,3.75446,3359.8,3359.7,2.6989235]
[1735631608469,3.0,3359.9,3359.8,0.55]
[1735631608670,2.97583,3360.4,3359.8,0.87489235]
[1735631608973,1.87333337,3360.5,3360.3,3.2489235]
[1735631609308,1.87333337,3360.5,3360.4,0.55]
[1735631609713,3.0,3360.6,3360.4,0.55]
[1735631610420,3.0,3360.7,3360.4,0.55]
[1735631610604,5.97557,3360.7,3360.6,2.6989235]
[1735631610790,7.38866172,3360.7,3360.6,2.6989235]
[1735631612177,5.97582,3360.5,3360.4,0.55]
[1735631612573,5.97582,3360.5,3360.4,0.59303127]
[1735631614047,5.97582,3360.5,3360.4,0.55]
[1735631615344,5.56141324,3360.5,3360.4,0.55]
[1735631615544,2.97583,3360.4,3360.3,2.6989235]
[1735631615701,3.77893,3360.4,3360.3,2.6989235]
[1735631615906,3.77893,3360.4,3360.3,2.74195477]
[1735631616344,6.77893,3360.4,3360.3,2.74195477]
[1735631616553,8.24171334,3360.4,3360.3,2.74195477]
[1735631617446,6.77893,3360.4,3360.3,2.74195477]
[1735631617825,6.77893,3360.4,3360.3,2.6989235]
[1735631621766,5.97583,3360.4,3360.3,3.2489235]
[1735631621995,2.97583,3360.4,3360.3,3.2489235]
[1735631622276,2.97583,3360.4,3360.3,3.29193927]
[1735631622562,2.97583,3360.4,3360.3,3.2489235]
[1735631624566,2.97583,3360.4,3360.3,2.6989235]
[1735631626574,2.97583,3360.4,3360.3,3.2489235]
[1735631627131,1.87333337,3360.5,3360.4,0.55]
[1735631627667,1.87333337,3360.5,3360.4,0.5915509]
[1735631627971,1.87333337,3360.5,3360.4,0.55]
[1735631628172,2.97566,3360.6,3360.4,0.55]
[1735631629474,3.81969995,3360.5,3360.4,0.55]
[1735631630229,2.97583,3360.4,3360.3,2.6989235]
[1735631630541,2.97583,3360.4,3360.3,2.7404744]
[1735631631252,2.97583,3360.4,3360.3,2.6989235]
[1735631631809,2.97583,3360.4,3360.0,2.6989235]
[1735631631810,7.09008372,3360.4,3360.0,2.6989235]
[1735631631940,2.9761,3360.1,3360.0,2.6989235]
[1735631632141,3.7578,3360.1,3360.0,2.6989235]
[1735631632844,2.97642,3359.8,3359.7,2.6989235]
[1735631633261,0.02975995,3360.0,3359.3,1.24883392]
[1735631633780,2.97649,3359.7,3359.5,2.6989235]
[1735631633988,2.97649,3359.7,3359.6,0.55]
[1735631638597,1.87333337,3360.0,3359.6,0.87489235]
[1735631638810,4.87333337,3360.0,3359.9,3.2489235]
[1735631639106,4.84952337,3360.0,3359.9,3.2489235]
[1735631639474,2.97619,3360.0,3359.9,3.2489235]
[1735631639675,2.97645,3359.7,3359.6,2.6989235]
[1735631640063,2.97645,3359.7,3359.6,3.29073024]
[1735631640477,2.97636,3359.8,3359.7,0.55]
[1735631640803,4.84953337,3360.0,3359.7,0.55]
[1735631641158,4.84953337,3360.0,3359.9,2.6989235]
[1735631641696,1.90309332,3360.1,3359.7,0.55]
[1735631642075,2.97636,3359.8,3359.7,0.55]
[1735631644060,1.87333337,3360.0,3359.7,0.87489235]
[1735631644265,1.87333337,3360.0,3359.9,3.2489235]
[1735631645013,1.87333337,3360.1,3360.0,0.55]
[1735631645959,4.84935337,3360.2,3360.0,0.55]
[1735631646404,1.87333337,3360.2,3359.9,2.6989235]
[1735631646902,3.73929,3360.0,3359.9,2.6989235]
[1735631647198,2.97641,3359.8,3359.7,0.55]
[1735631648178,2.97641,3359.8,3359.7,0.59219437]
[1735631648996,2.97641,3359.8,3359.7,3.29111787]
[1735631649170,2.97641,3359.8,3359.7,3.2489235]
[1735631649502,2.97641,3359.8,3359.7,3.29116439]
[1735631650810,5.61265337,3360.0,3359.7,3.29116439]
[1735631651301,3.73932,3360.0,3359.7,3.29116439]
[1735631652474,2.97622,3360.0,3359.7,3.29116439]
[1735631654834,1.87333337,3360.2,3359.7,3.62028083]
[1735631655035,1.87333337,3360.2,3360.1,3.2489235]
[1735631655359,1.87333337,3360.2,3360.1,3.29101706]
[1735631655835,1.87333337,3360.4,3360.2,0.55]
[1735631656521,1.87333337,3360.4,3360.3,0.59209356]
[1735631656921,1.87333337,3360.4,3360.3,0.55]
[1735631657117,1.87333337,3360.5,3360.3,0.55]
[1735631657366,1.87333337,3360.5,3360.4,3.2489235]
[1735631657722,1.87333337,3360.5,3360.4,3.57381585]
[1735631658027,1.87333337,3360.5,3360.4,3.61590941]
[1735631658626,1.87333337,3360.6,3360.4,3.61590941]
[1735631659459,1.87333337,3360.6,3360.5,3.2489235]
[1735631659658,1.87333337,3360.6,3360.5,3.29044342]
[1735631659867,1.87333337,3360.6,3360.5,1.22294585]
[1735631660161,6.72453308,3361.2,3360.5,0.04151992]
[1735631660162,1.87333337,3361.1,3360.5,0.04151992]
[1735631660380,1.87333337,3361.1,3360.7,2.6989235]
[1735631660540,1.87333337,3361.1,3360.8,0.55]
[1735631660966,3.00505995,3361.0,3360.9,0.04151992]
[1735631661350,2.97539,3360.9,3360.8,0.55]
[1735631661690,2.97548,3360.8,3360.7,2.6989235]
[1735631661989,3.00523995,3360.8,3360.7,2.6989235]
[1735631662593,3.00523995,3360.8,3360.7,3.2489235]
[1735631662983,3.00523995,3360.8,3360.7,2.6989235]
[1735631663141,2.97568,3360.6,3360.4,2.6989235]
[1735631663881,2.97568,3360.6,3360.5,0.55]
[1735631664183,2.97568,3360.6,3360.4,2.6989235]
[1735631667682,0.84455995,3360.5,3360.4,2.6989235]
[1735631667889,3.82029995,3360.5,3360.4,2.6989235]
[1735631668352,3.79054,3360.5,3360.4,2.6989235]
[1735631670683,0.8148,3360.5,3360.4,2.6989235]
[1735631678109,0.8148,3360.5,3360.4,2.73997057]
[1735631682196,0.8148,3360.5,3360.4,1.32021702]
[1735631690389,0.8148,3360.5,3360.4,1.27916995]
[1735631690855,4.38667929,3360.5,3360.4,1.27916995]
[1735631691062,2.97601,3360.2,3359.6,8.9]
[1735631691212,0.80165995,3360.4,3360.1,1.27916995]
[1735631691412,3.74791,3360.2,3360.1,1.27916995]
[1735631691842,3.74791,3360.2,3360.1,1.32031002]
[1735631692562,3.74791,3360.2,3360.1,1.27916995]
[1735631693562,1.87333337,3360.4,3360.1,1.27916995]
[1735631693718,1.87333337,3360.4,3360.3,1.27916995]
[1735631693917,1.87333337,3360.4,3360.3,1.82916995]
[1735631694966,8.62106337,3360.5,3360.3,1.82916995]
[1735631696366,8.62106337,3360.5,3360.3,0.55]
[1735631697891,7.84916337,3360.5,3360.3,0.55]
[1735631698090,1.87333337,3360.4,3360.3,0.55]
[1735631701723,7.84908337,3360.5,3360.3,0.55]
[1735631703275,7.84908337,3360.5,3360.4,0.04013152]
[1735631703673,7.84908337,3360.5,3360.3,0.55]
[1735631704001,7.84908337,3360.5,3360.4,0.04020906]
[1735631704296,7.84908337,3360.5,3360.3,0.55]
[1735631704664,7.84908337,3360.5,3360.4,0.04020906]
[1735631704883,7.84908337,3360.5,3360.3,0.55]
[1735631705087,7.84908337,3360.5,3360.4,0.04020906]
[1735631705361,7.84908337,3360.5,3360.3,0.55]
[1735631705676,0.02975995,3360.4,3360.3,0.55]
[1735631707798,5.07053611,3360.4,3359.9,2.70257599]
[1735631708004,3.0,3360.0,3359.6,2.70257599]
[1735631708200,0.8295,3360.2,3359.6,2.70257599]
[1735631708401,2.97628,3359.9,3359.6,2.70257599]
[1735631708573,0.8295,3359.8,3359.7,0.58891433]
[1735631709192,6.80586,3359.8,3359.7,0.03891433]
[1735631709393,5.97648,3359.7,3359.3,11.60257599]
[1735631709601,5.97648,3359.7,3359.4,0.55]
[1735631710713,3.8295,3359.8,3359.6,2.70257599]
[1735631711075,1.87409932,3359.7,3359.6,2.70257599]
[1735631711792,1.87409932,3359.7,3359.6,3.25257599]
[1735631712420,4.87409932,3359.9,3359.7,0.55]
[1735631713727,3.0,3359.9,3359.7,0.55]
[1735631715326,3.0,3359.9,3359.8,0.03670678]
[1735631715922,3.0,3359.9,3359.7,0.55]
[1735631716121,1.87409932,3360.0,3359.7,0.8752576]
[1735631716281,1.87409932,3360.0,3359.9,3.25257599]
[1735631716684,4.87409932,3360.1,3360.0,0.55]
[1735631717101,4.87409932,3360.1,3360.0,0.58670678]
[1735631717996,1.87409932,3360.3,3360.0,0.58670678]
[1735631718200,1.87409932,3360.3,3360.2,3.25257599]
[1735631718712,4.87409932,3360.3,3360.2,3.28923627]
[1735631719529,3.0,3360.5,3360.2,3.28923627]
[1735631726346,3.0,3360.5,3360.2,0.58666028]
[1735631726516,3.0,3360.5,3360.3,2.70257599]
[1735631727021,3.0,3360.5,3360.4,0.03666028]
[1735631727330,3.0,3360.5,3360.3,2.70257599]
[1735631727526,3.0,3360.5,3360.4,0.03666028]
[1735631727730,3.0,3360.5,3360.3,2.70257599]
[1735631727953,3.0,3360.5,3360.4,0.03666028]
[1735631728116,3.0,3360.5,3360.3,2.70257599]
[1735631728318,3.0,3360.5,3360.4,0.03666028]
[1735631728546,3.0,3360.5,3360.3,2.70257599]
[1735631728700,3.0,3360.5,3360.4,0.03666028]
[1735631728898,3.0,3360.5,3360.3,2.70257599]
[1735631729141,3.0,3360.5,3360.4,0.03666028]
[1735631729342,3.0,3360.5,3360.3,2.70257599]
[1735631729605,3.0,3360.5,3360.4,0.03666028]
[1735631729806,3.0,3360.5,3360.3,2.70257599]
[1735631730006,3.0,3360.5,3360.4,0.03636584]
[1735631730206,3.0,3360.5,3360.3,2.70257599]
[1735631730457,3.0,3360.5,3360.4,0.03636584]
[1735631730806,3.0,3360.5,3360.3,2.70257599]
[1735631731009,3.0,3360.5,3360.4,0.03636584]
[1735631731205,3.0,3360.5,3360.3,2.70257599]
[1735631731509,1.87409932,3360.6,3360.4,0.03636584]
[1735631731810,1.87409932,3360.6,3360.3,2.70257599]
[1735631732010,1.87409932,3360.6,3360.5,0.03636584]
[1735631732206,1.87409932,3360.6,3360.5,1.27924188]
[1735631733812,1.87409932,3360.6,3360.5,1.31560772]
[1735631734284,1.87409932,3360.6,3360.5,0.03636584]
[1735631734558,1.87409932,3360.6,3360.3,0.55]
[1735631734729,1.87409932,3360.6,3360.5,0.03636584]
[1735631734948,1.87409932,3360.6,3360.3,0.55]
[1735631735125,1.87409932,3360.6,3360.5,0.03636584]
[1735631735359,1.87409932,3360.6,3360.3,0.55]
[1735631735648,1.87409932,3360.6,3360.5,0.03636584]
[1735631735833,3.0,3360.5,3359.9,0.55]
[1735631736039,3.0,3360.5,3360.2,0.55]
[1735631736550,3.0,3360.5,3360.3,0.03636584]
[1735631737654,3.7693,3360.5,3360.3,0.03636584]
[1735631738849,5.64339932,3360.5,3360.3,0.03636584]
[1735631740152,3.7693,3360.5,3360.3,0.03636584]
[1735631740326,0.7693,3360.5,3360.3,0.03636584]
[1735631741555,4.87409932,3360.7,3360.5,0.55]
[1735631741942,4.87409932,3360.7,3360.6,0.58627291]
[1735631742341,4.87409932,3360.7,3360.6,0.55]
[1735631743078,3.0,3360.7,3360.6,0.55]
[1735631745361,3.0,3360.7,3360.6,0.91151885]
[1735631746022,3.0,3360.8,3360.7,0.55]
[1735631746224,1.87409932,3360.9,3360.7,2.70245941]
[1735631746975,1.87409932,3360.9,3360.0,0.55]
[1735631747152,1.87409932,3360.9,3360.7,0.55]
[1735631748460,1.87409932,3360.9,3360.8,0.03627291]
[1735631748818,1.87409932,3360.9,3360.7,0.55]
[1735631749061,1.87409932,3360.9,3360.8,0.03627291]
[1735631749432,1.87409932,3360.9,3360.7,0.55]
[1735631749620,1.87409932,3360.9,3360.8,0.03627291]
[1735631749820,1.87409932,3360.9,3360.7,0.55]
[1735631750053,4.87409932,3361.0,3360.7,0.55]
[1735631750361,4.87409932,3361.0,3360.8,0.03613348]
[1735631750661,4.87409932,3361.0,3360.7,0.55]
[1735631751065,4.87409932,3361.0,3360.8,0.03613348]
[1735631751557,7.84940932,3361.0,3360.7,0.55]
[1735631751748,7.84940932,3361.0,3360.9,0.03613348]
[1735631752122,7.84940932,3361.0,3360.7,0.55]
[1735631752353,7.84940932,3361.0,3360.8,0.03613348]
[1735631752748,7.84940932,3361.0,3360.7,0.55]
[1735631753057,7.84940932,3361.0,3360.9,0.03613348]
[1735631753358,7.84940932,3361.0,3360.7,0.55]
[1735631753660,7.84940932,3361.0,3360.9,0.03613348]
[1735631753825,7.84940932,3361.0,3360.7,0.55]
[1735631754024,7.84940932,3361.0,3360.9,0.03613348]
[1735631754255,7.84940932,3361.0,3360.7,0.55]
[1735631754619,7.84940932,3361.0,3360.8,0.03613348]
[1735631754867,7.84940932,3361.0,3360.7,0.55]
[1735631755071,7.84940932,3361.0,3360.9,0.03613348]
[1735631755216,7.84940932,3361.0,3360.7,0.55]
[1735631755422,7.84940932,3361.0,3360.9,0.03613348]
[1735631755649,9.27569537,3361.0,3360.7,0.55]
[1735631756030,9.27569537,3361.0,3360.8,0.03613348]
[1735631756236,9.27569537,3361.0,3360.9,1.27904827]
[1735631758865,7.40159605,3361.0,3360.9,1.27904827]
[1735631760035,2.97575,3360.5,3360.1,8.9]
[1735631760237,0.8234,3360.8,3360.5,1.27904827]
[1735631760482,0.8234,3360.8,3360.7,1.82904827]
[1735631761332,3.82863995,3360.8,3360.7,1.82904827]
[1735631761849,3.82863995,3360.8,3360.7,0.55]
[1735631762053,3.0,3360.6,3360.1,8.9]
[1735631762227,3.79922,3360.5,3360.4,1.27904827]
[1735631764338,2.97603,3360.2,3359.8,8.9]
[1735631764538,0.8234,3360.0,3359.5,1.24883392]
[1735631764868,5.97636,3359.8,3359.7,1.27904827]
[1735631765427,3.0,3359.8,3359.7,1.27904827]
[1735631765835,3.0,3359.8,3359.7,1.82904827]
[1735631768176,3.0,3359.8,3359.7,1.86251632]
[1735631775205,3.0,3359.8,3359.7,2.04876795]
[1735631778016,3.0,3359.8,3359.7,10.94876795]
[1735631780365,3.0,3359.8,3359.7,9.66971968]
[1735631780567,3.0,3359.8,3359.7,10.76251632]
[1735631781872,3.0,3359.8,3359.7,10.72904827]
[1735631782208,3.0,3359.8,3359.7,10.76294992]
[1735631785717,3.0,3359.8,3359.7,12.04199819]
[1735631785889,3.0,3359.8,3359.7,10.76294992]
[1735631786088,3.0,3359.8,3359.7,11.83924491]
[1735631792909,1.86956961,3360.4,3359.9,8.9]
[1735631793125,1.86956961,3360.4,3360.2,0.55]
[1735631793409,1.86956961,3360.4,3360.3,12.00809654]
[1735631793607,1.86956961,3360.4,3360.3,12.04190528]
[1735631793825,1.86956961,3360.4,3360.3,13.54368781]
[1735631794623,5.63805961,3361.3,3360.4,9.45]
[1735631794778,5.63805961,3361.3,3361.2,1.27904827]
[1735631794779,8.63805961,3361.3,3361.2,1.27904827]
[1735631794983,8.63805961,3361.3,3361.2,1.31216802]
[1735631795248,5.63805961,3361.3,3361.2,1.31216802]
[1735631795422,1.86956961,3361.3,3361.2,1.86216802]
[1735631795897,3.73913923,3362.0,3361.2,1.86216802]
[1735631795898,0.7934,3361.7,3361.3,0.55]
[1735631796099,0.7934,3361.7,3361.6,1.27904827]
[1735631796293,0.7934,3361.7,3361.6,1.82904827]
[1735631796494,1.86956961,3361.8,3361.7,0.55]
[1735631796926,1.86956961,3361.8,3361.7,0.58285663]
[1735631797111,0.7934,3362.0,3361.7,0.58285663]
[1735631797307,0.7934,3362.0,3361.9,1.82904827]
[1735631797687,0.7934,3362.0,3361.9,1.86061238]
[1735631798339,0.7934,3362.0,3361.9,0.58156411]
[1735631798632,3.7934,3362.0,3361.9,0.58156411]
[1735631798787,4.447561,3362.0,3361.9,0.03156411]
[1735631799128,3.0,3361.8,3361.6,0.55]
[1735631799442,2.97459,3361.8,3361.7,0.03141714]
[1735631799945,0.7934,3361.8,3361.3,8.9]
[1735631800131,3.0,3361.5,3361.3,8.9]
[1735631800333,3.0,3361.7,3361.4,0.57897981]
[1735631800550,3.0,3361.7,3361.6,0.55]
[1735631801059,3.0,3361.7,3361.6,0.57897981]
[1735631805831,0.7934,3361.8,3361.6,0.57897981]
[1735631806053,0.7934,3361.8,3361.6,0.55]
[1735631807216,0.7934,3361.8,3361.7,0.02914219]
[1735631807758,0.8043,3362.1,3361.7,0.02914219]
[1735631808651,0.8043,3362.1,3361.9,0.55]
[1735631809158,3.0,3362.3,3362.0,0.02914219]
[1735631809316,3.0,3362.3,3362.1,2.69996444]
[1735631809524,3.77837,3362.4,3362.1,2.69996444]
[1735631809858,0.8043,3362.4,3362.2,0.57914219]
[1735631813628,3.0,3362.3,3362.2,0.57914219]
[1735631824240,3.0,3362.3,3362.2,1.85701534]
[1735631826583,0.8043,3362.4,3362.3,0.55]
[1735631826975,0.8043,3362.4,3362.3,0.57769455]
[1735631830496,3.0,3362.5,3362.3,0.57769455]
[1735631830699,3.0,3362.5,3362.4,1.82787315]
[1735631830874,0.7501,3362.6,3362.5,0.55]
[1735631831246,3.72398,3362.6,3361.8,8.9]
[1735631831490,3.00373995,3362.5,3362.4,1.27787315]
[1735631831651,2.97398,3362.5,3362.4,1.82787315]
[1735631835506,0.7501,3362.6,3362.4,1.82787315]
[1735631840104,3.0,3362.5,3362.4,1.82787315]
[1735631843301,3.0,3362.5,3362.4,1.85563727]
[1735631844516,2.97397,3362.5,3362.4,0.57776412]
[1735631844723,3.00372995,3362.5,3362.4,0.55]
[1735631845216,1.18947591,3362.5,3362.2,1.27787315]
[1735631845375,0.7994,3362.4,3362.2,1.27787315]
[1735631846005,0.7994,3362.4,3362.3,0.55]